bitfinex/quotes_SOLUSD_20251216
["timestamp","ask_amount","ask_price","bid_price","bid_amount"]
[1765903240522,6.52088405,128.19,128.16,0.74543214]
[1765903240821,7.21088405,128.2,128.16,0.74543214]
[1765903241183,6.52088405,128.19,128.16,0.04543214]
[1765903241378,15.01302183,128.17,128.16,0.04543214]
[1765903242189,8.49213778,128.17,128.16,0.04543214]
[1765903242414,15.01302183,128.17,128.16,0.04543214]
[1765903243287,23.82296675,128.17,128.16,0.04543214]
[1765903243484,8.49213778,128.17,128.16,0.04543214]
[1765903243814,15.01302183,128.17,128.16,0.04543214]
[1765903244019,112.89994492,128.16,128.15,0.1]
[1765903244235,119.42082897,128.16,128.15,0.1]
[1765903244541,13.7370912,128.13,128.08,0.7]
[1765903244714,8.54,128.12,128.09,6.52088405]
[1765903244913,8.54,128.13,128.11,0.7]
[1765903245499,8.54,128.13,128.09,0.7]
[1765903245705,8.54,128.13,128.1,0.7]
[1765903246544,8.54,128.13,128.09,8.50681984]
[1765903246545,16.34463086,128.13,128.09,8.50681984]
[1765903246707,16.34463086,128.13,128.1,0.7]
[1765903246902,16.34463086,128.13,128.04,47.58783374]
[1765903246903,30.08172206,128.13,128.07,0.7]
[1765903247214,30.08172206,128.13,128.06,19.52132296]
[1765903247215,7.21088405,128.1,128.06,7.80878769]
[1765903247410,8.56,128.09,128.06,8.50878769]
[1765903247641,8.56,128.09,128.07,0.7]
[1765903248442,8.56,128.09,128.08,0.7]
[1765903249509,8.56,128.09,128.08,8.50762023]
[1765903249709,8.56,128.09,128.06,0.7]
[1765903250336,15.08088405,128.09,128.05,0.7]
[1765903250546,6.52088405,128.07,128.03,0.7]
[1765903250736,8.56,128.06,128.01,6.52088405]
[1765903251056,8.56,128.06,128.03,0.7]
[1765903251205,8.56,128.06,128.03,8.51066013]
[1765903251402,16.36890767,128.06,128.03,0.7]
[1765903251638,8.56,128.06,128.03,0.7]
[1765903252239,16.36908456,128.06,128.03,0.7]
[1765903253031,8.56,128.06,128.04,0.7]
[1765903253242,8.56,128.06,128.0,0.7]
[1765903253243,6.52088405,128.05,128.0,0.7]
[1765903253555,6.52088405,128.05,128.02,0.7]
[1765903253922,17.05884542,128.06,128.02,0.7]
[1765903254122,8.56,128.06,128.02,0.7]
[1765903254457,0.69,128.12,128.05,0.7]
[1765903254617,8.56,128.11,128.07,0.7]
[1765903254814,8.56,128.11,128.07,6.52088405]
[1765903255128,8.56,128.11,128.09,7.80701069]
[1765903255333,8.56,128.11,128.09,8.50701069]
[1765903255733,8.56,128.11,128.1,0.7]
[1765903255937,8.56,128.13,128.11,0.7]
[1765903257251,15.08088405,128.13,128.09,0.7]
[1765903257552,6.52088405,128.11,128.08,7.80733956]
[1765903258047,8.56,128.1,128.07,8.50811417]
[1765903258261,15.08088405,128.1,128.07,0.7]
[1765903258559,8.56,128.1,128.07,8.50822588]
[1765903259222,16.36649106,128.1,128.07,0.7]
[1765903259421,8.56,128.1,128.07,8.50799755]
[1765903259839,8.56,128.1,128.08,0.7]
[1765903261071,13.0470912,128.14,128.08,0.7]
[1765903261285,15.01572321,128.13,128.08,0.7]
[1765903261450,7.21088405,128.12,128.08,0.7]
[1765903261937,7.21088405,128.12,128.08,8.50761383]
[1765903262152,7.21088405,128.12,128.07,8.5080999]
[1765903262345,7.21088405,128.12,128.07,8.50809576]
[1765903262346,6.52088405,128.11,128.07,8.50809576]
[1765903262575,8.56,128.1,128.08,8.50756523]
[1765903262781,8.56,128.1,128.09,8.50701069]
[1765903263155,8.56,128.12,128.11,7.80579189]
[1765903263461,8.56,128.12,128.1,0.7]
[1765903264255,8.56,128.12,128.1,8.50636323]
[1765903264471,9.25,128.12,128.07,0.71]
[1765903264678,23.5760922,128.12,128.07,8.51802576]
[1765903264874,23.5760922,128.12,128.08,0.71]
[1765903264875,43.0890488,128.12,128.08,0.71]
[1765903265077,7.21088405,128.11,128.07,0.71]
[1765903265277,7.21088405,128.11,128.04,13.0470912]
[1765903265278,6.52088405,128.09,128.04,0.71]
[1765903265576,9.25,128.08,128.03,0.71]
[1765903265762,6.52088405,128.07,128.03,8.520491]
[1765903266266,8.56,128.08,128.04,0.71]
[1765903266770,8.56,128.08,128.05,0.71]
[1765903267383,22.88884319,128.08,128.05,0.71]
[1765903267593,23.57884319,128.08,128.04,0.71]
[1765903267884,23.57884319,128.08,128.03,0.71]
[1765903267885,6.52088405,128.07,128.03,0.71]
[1765903268088,6.52088405,128.06,128.03,8.52064123]
[1765903268280,8.56,128.05,128.03,0.71]
[1765903268848,8.56,128.05,128.03,7.81053803]
[1765903269151,8.56,128.05,128.04,8.52005935]
[1765903269352,8.56,128.07,128.04,8.52005935]
[1765903269553,24.47326003,128.15,128.04,8.52005935]
[1765903269554,7.80518264,128.12,128.06,6.52088405]
[1765903269753,7.80518264,128.12,128.07,6.52088405]
[1765903269983,7.21088405,128.1,128.05,0.71]
[1765903270275,6.52088405,128.07,128.03,0.71]
[1765903270478,6.52088405,128.06,128.02,8.52090218]
[1765903270687,7.21088405,128.05,127.96,0.71]
[1765903270887,8.56,128.04,128.0,0.71]
[1765903271086,8.56,128.04,128.01,8.52187687]
[1765903271886,8.56,128.05,128.02,0.71]
[1765903272087,8.56,128.05,128.03,0.71]
[1765903272264,8.56,128.05,128.04,7.23088405]
[1765903272456,8.56,128.08,128.05,0.71]
[1765903272871,8.56,128.08,128.02,6.52088405]
[1765903273071,15.77088405,128.08,128.03,0.71]
[1765903273290,15.08088405,128.08,128.04,0.71]
[1765903273490,7.80822987,128.07,128.03,8.5205513]
[1765903273694,14.32911392,128.07,128.03,8.5205513]
[1765903273862,14.32911392,128.07,128.04,0.71]
[1765903274058,14.32911392,128.07,128.03,8.5205513]
[1765903274300,7.80822987,128.07,128.04,0.71]
[1765903274665,16.36782386,128.08,128.04,8.51991345]
[1765903274874,22.88870791,128.08,128.04,8.51991345]
[1765903275065,8.56,128.08,128.05,0.71]
[1765903275492,8.56,128.08,128.05,8.51941653]
[1765903275809,7.21088405,128.07,128.02,8.521028]
[1765903276168,7.21088405,128.06,128.01,8.52169204]
[1765903276371,8.56,128.05,128.02,0.71]
[1765903276591,8.56,128.05,128.02,8.52124425]
[1765903276900,8.56,128.05,128.01,7.81165487]
[1765903277113,15.77088405,128.05,128.0,7.81231596]
[1765903277292,15.77088405,128.05,128.01,0.71]
[1765903277606,8.56,128.05,128.02,0.71]
[1765903278411,8.56,128.05,128.03,0.71]
[1765903278712,16.36956321,128.05,128.03,0.71]
[1765903278890,8.56,128.05,128.01,8.52170583]
[1765903279094,8.56,128.05,128.01,7.81170583]
[1765903279286,22.89053113,128.05,128.01,0.71]
[1765903279489,6.52088405,128.04,128.01,0.71]
[1765903279683,0.69,128.03,127.98,0.71]
[1765903279884,15.08088405,128.02,127.98,7.81369011]
[1765903280084,8.56,128.02,127.99,8.52268642]
[1765903280300,8.56,128.02,128.01,0.71]
[1765903280512,8.56,128.02,128.01,8.52188969]
[1765903280726,8.56,128.02,128.01,15.04277374]
[1765903280886,8.56,128.05,128.02,0.71]
[1765903281082,8.56,128.05,128.03,0.71]
[1765903281387,8.56,128.05,128.04,0.71]
[1765903281714,0.69,128.04,127.98,9.51994492]
[1765903281887,0.69,128.04,127.98,7.81338773]
[1765903282101,0.69,128.04,127.95,0.1]
[1765903282303,6.53657145,127.98,127.95,0.81]
[1765903282515,8.56,127.97,127.96,0.71]
[1765903282721,8.56,127.97,127.96,7.24657145]
[1765903282906,8.56,127.97,127.96,6.6681232]
[1765903283106,0.72,128.04,127.96,6.53657145]
[1765903283423,8.56,128.03,127.99,6.53657145]
[1765903283724,8.56,128.03,128.0,6.53657145]
[1765903283896,9.28,128.04,128.01,5.80642382]
[1765903284099,16.37023602,128.04,128.02,5.80642382]
[1765903284297,8.56,128.04,128.03,5.80642382]
[1765903284906,8.56,128.04,128.01,0.71]
[1765903285423,8.56,128.04,128.01,7.24657145]
[1765903285731,8.56,128.04,128.01,8.52168802]
[1765903285900,8.56,128.04,128.01,7.81168802]
[1765903286108,17.09017804,128.04,127.99,7.24657145]
[1765903286433,17.09017804,128.04,128.0,15.0589412]
[1765903286931,8.56,128.04,128.01,7.81155344]
[1765903287112,19.51997854,128.08,128.02,7.24657145]
[1765903287113,6.53657145,128.08,128.02,7.24657145]
[1765903287318,17.08848962,128.07,128.03,0.71]
[1765903288229,0.72,128.06,128.02,8.52080273]
[1765903288406,17.08848962,128.07,128.02,15.05749713]
[1765903288606,8.56,128.07,128.03,8.52046346]
[1765903288818,8.56,128.07,128.03,15.05703491]
[1765903289037,9.28,128.07,128.03,8.52046346]
[1765903289337,7.80678482,128.1,128.06,0.71]
[1765903289504,7.80678482,128.1,128.06,7.24657145]
[1765903289505,16.36678482,128.1,128.06,7.24657145]
[1765903289799,17.08678482,128.1,128.06,0.71]
[1765903290005,0.72,128.09,128.04,14.34649706]
[1765903290220,0.72,128.09,128.05,0.71]
[1765903290429,7.25657145,128.09,128.05,0.71]
[1765903290606,0.72,128.09,128.04,7.24657145]
[1765903290801,7.25657145,128.09,128.04,7.24657145]
[1765903291005,7.25657145,128.09,128.04,14.34657777]
[1765903291239,35.88278794,128.1,128.05,14.34596942]
[1765903291413,36.60278794,128.1,128.06,0.71]
[1765903291816,0.72,128.09,128.05,15.05596942]
[1765903292340,8.52743603,128.09,128.05,0.71]
[1765903293033,8.52743603,128.09,128.05,7.24657145]
[1765903293424,8.52743603,128.09,128.05,0.71]
[1765903293935,8.52743603,128.09,128.05,7.24657145]
[1765903294147,0.7,128.12,128.08,6.53657145]
[1765903294306,0.7,128.12,128.08,7.22657145]
[1765903294307,8.50541175,128.12,128.08,7.22657145]
[1765903294725,8.50541175,128.12,128.08,0.69]
[1765903295125,8.50541175,128.12,128.08,7.22657145]
[1765903295521,7.80541175,128.12,128.08,0.69]
[1765903295720,8.48541175,128.12,128.08,0.69]
[1765903296127,8.48541175,128.12,128.08,15.03409455]
[1765903296334,21.6070912,128.13,128.08,15.03409455]
[1765903296335,8.56,128.13,128.1,7.22657145]
[1765903296637,8.56,128.13,128.1,15.0327511]
[1765903297218,16.36468133,128.13,128.07,0.69]
[1765903297417,0.68,128.12,128.08,15.03381966]
[1765903297617,8.56,128.13,128.1,7.80637301]
[1765903297817,8.56,128.13,128.1,15.03294446]
[1765903298535,8.56,128.13,128.12,0.69]
[1765903298730,16.36353561,128.15,128.12,0.69]
[1765903299224,8.56,128.15,128.12,0.69]
[1765903299425,16.36343051,128.15,128.12,0.69]
[1765903299734,8.4827029,128.17,128.13,11.29475514]
[1765903299914,17.0427029,128.17,128.13,11.29475514]
[1765903300514,17.0427029,128.17,128.13,0.69]
[1765903300725,16.3627029,128.17,128.14,0.69]
[1765903300937,8.56,128.17,128.14,11.29475514]
[1765903301120,16.36225956,128.17,128.13,18.40920959]
[1765903301323,16.36225956,128.17,128.13,19.09920959]
[1765903301324,17.04225956,128.17,128.13,19.09920959]
[1765903301521,8.56,128.19,128.16,11.29475514]
[1765903301740,7.80067727,128.2,128.17,0.69]
[1765903301945,8.48067727,128.2,128.14,0.69]
[1765903302114,11.28475514,128.19,128.13,7.80445445]
[1765903302310,8.48179254,128.18,128.14,10.60475514]
[1765903302510,7.80113962,128.19,128.14,18.40861327]
[1765903302730,9.24,128.21,128.17,11.29475514]
[1765903302919,0.68,128.2,128.16,10.60475514]
[1765903303125,0.68,128.2,128.15,11.29475514]
[1765903303334,0.68,128.19,128.15,11.29475514]
[1765903303524,0.68,128.18,128.13,7.80438738]
[1765903303725,0.68,128.18,128.14,11.29475514]
[1765903304018,0.68,128.18,128.14,19.09865986]
[1765903304230,10.60475514,128.2,128.14,18.40865986]
[1765903304429,7.8009205,128.19,128.15,11.29475514]
[1765903304828,8.4809205,128.19,128.15,11.29475514]
[1765903305539,8.4809205,128.19,128.15,0.69]
[1765903305739,8.4809205,128.19,128.15,11.29475514]
[1765903307546,8.4809205,128.19,128.15,19.09806349]
[1765903308146,7.8009205,128.19,128.16,0.69]
[1765903308547,19.08506715,128.2,128.15,10.60475514]
[1765903308735,19.08506715,128.2,128.16,0.69]
[1765903308936,7.80031201,128.2,128.17,0.69]
[1765903309831,7.79991871,128.21,128.17,10.60475514]
[1765903310048,16.35929993,128.22,128.18,10.60475514]
[1765903310248,17.03929993,128.22,128.18,10.60475514]
[1765903310548,7.80152909,128.18,128.15,0.69]
[1765903311134,16.36111648,128.19,128.16,0.69]
[1765903311551,8.56,128.19,128.17,0.69]
[1765903311845,8.56,128.19,128.16,11.29475514]
[1765903312258,16.36099427,128.19,128.16,11.29475514]
[1765903312637,16.36099427,128.19,128.16,0.69]
[1765903313128,17.04099427,128.19,128.15,18.40795016]
[1765903313326,17.04099427,128.19,128.16,0.69]
[1765903313554,17.04099427,128.19,128.16,8.49264925]
[1765903313731,17.04099427,128.19,128.16,0.69]
[1765903313930,0.68,128.16,128.09,0.69]
[1765903314150,0.68,128.14,128.11,0.69]
[1765903314348,0.68,128.14,128.1,0.69]
[1765903314731,0.68,128.14,128.1,8.49626899]
[1765903314940,0.68,128.14,128.1,19.10102413]
[1765903315141,0.68,128.14,128.11,0.69]
[1765903315361,0.68,128.14,128.1,19.10102413]
[1765903316265,38.67326876,128.15,128.1,19.10102413]
[1765903316266,0.68,128.17,128.11,0.69]
[1765903316577,0.68,128.16,128.12,11.29475514]
[1765903317237,8.48334858,128.16,128.12,0.69]
[1765903317447,8.48334858,128.16,128.13,0.69]
[1765903317644,7.80334858,128.16,128.13,0.69]
[1765903318061,8.48228147,128.17,128.13,0.69]
[1765903318440,7.80228147,128.17,128.14,0.69]
[1765903318642,8.48228147,128.17,128.14,0.69]
[1765903318847,8.48228147,128.17,128.13,0.69]
[1765903319068,0.68,128.16,128.12,19.09988423]
[1765903319269,8.48321576,128.16,128.12,8.49512909]
[1765903319453,7.80321576,128.16,128.12,0.69]
[1765903319634,0.68,128.15,128.11,19.10026363]
[1765903319971,0.68,128.15,128.12,0.69]
[1765903320264,8.4822028,128.17,128.13,0.69]
[1765903320846,7.8022028,128.17,128.13,0.69]
[1765903321138,11.28475514,128.15,128.1,8.49598278]
[1765903321451,0.68,128.12,128.08,0.69]
[1765903321651,0.68,128.12,128.07,10.60475514]
[1765903321652,0.68,128.11,128.07,10.60475514]
[1765903321862,8.56,128.12,128.08,0.69]
[1765903322066,9.24,128.12,128.08,0.69]
[1765903322439,9.24,128.12,128.07,18.41269197]
[1765903322440,0.68,128.11,128.07,0.69]
[1765903322642,10.60475514,128.09,128.04,16.36977452]
[1765903322841,8.56,128.09,128.06,0.69]
[1765903323058,9.24,128.09,128.06,0.69]
[1765903323257,17.04750431,128.09,128.05,8.49931869]
[1765903323445,17.04750431,128.09,128.05,8.49938366]
[1765903323652,17.04750431,128.09,128.05,0.69]
[1765903323857,17.04750431,128.09,128.05,8.49940269]
[1765903324880,13.0470912,128.12,128.08,0.69]
[1765903325085,8.56,128.11,128.08,10.60475514]
[1765903325236,17.05474549,128.13,128.09,0.69]
[1765903325436,8.49474549,128.13,128.09,8.49685479]
[1765903325660,17.05474549,128.13,128.09,8.49685479]
[1765903326174,17.05474549,128.13,128.09,19.10160993]
[1765903326377,27.65950063,128.13,128.06,8.80994492]
[1765903326680,17.05474549,128.13,128.09,0.69]
[1765903327043,9.25,128.13,128.1,0.69]
[1765903327255,8.56,128.14,128.11,0.69]
[1765903327567,19.50448698,128.18,128.13,0.69]
[1765903327568,7.80225456,128.17,128.13,0.69]
[1765903327748,8.56,128.17,128.14,10.60475514]
[1765903327951,19.85475514,128.19,128.15,11.29475514]
[1765903328151,9.25,128.19,128.15,10.60475514]
[1765903328356,16.36096217,128.19,128.16,0.69]
[1765903328561,8.4890953,128.22,128.17,0.69]
[1765903328786,0.69,128.2,128.16,0.69]
[1765903328959,11.29475514,128.2,128.16,0.69]
[1765903329162,0.69,128.18,128.14,8.49375322]
[1765903329665,21.6070912,128.21,128.14,7.80375322]
[1765903329859,11.29475514,128.19,128.14,8.49375322]
[1765903330064,0.69,128.19,128.15,0.69]
[1765903330268,0.69,128.2,128.16,8.49263271]
[1765903330464,27.29683356,128.22,128.17,10.60475514]
[1765903330465,19.49773826,128.22,128.17,10.60475514]
[1765903330653,8.56,128.21,128.18,0.69]
[1765903330989,0.69,128.2,128.15,18.40789133]
[1765903331192,16.36004125,128.21,128.17,0.69]
[1765903331483,0.69,128.2,128.16,8.49260001]
[1765903331678,16.36004125,128.21,128.17,0.69]
[1765903331850,8.56,128.21,128.18,0.69]
[1765903332055,7.99883986,128.23,128.2,0.69]
[1765903332251,17.24883986,128.23,128.19,10.60475514]
[1765903332475,17.24883986,128.23,128.19,11.29475514]
[1765903332996,17.24883986,128.23,128.2,0.69]
[1765903332997,16.55883986,128.23,128.2,0.69]
[1765903334289,16.55883986,128.23,128.17,19.50448311]
[1765903334290,36.05505759,128.23,128.17,11.29475514]
[1765903334463,7.80031201,128.2,128.17,0.69]
[1765903335459,7.80031201,128.2,128.14,8.49359907]
[1765903335460,0.69,128.19,128.14,8.49359907]
[1765903335659,0.69,128.19,128.14,19.09835421]
[1765903335860,0.69,128.19,128.14,8.49354127]
[1765903336077,0.69,128.19,128.15,0.69]
[1765903336580,8.49152909,128.18,128.13,8.49433389]
[1765903336787,0.69,128.16,128.12,8.49491793]
[1765903336958,0.69,128.16,128.12,19.09967307]
[1765903337159,9.25,128.17,128.13,8.49443463]
[1765903337359,9.25,128.17,128.13,0.69]
[1765903338082,9.25,128.17,128.11,11.29475514]
[1765903338083,11.29475514,128.16,128.11,11.29475514]
[1765903338266,0.69,128.14,128.1,7.80614925]
[1765903338468,9.25,128.14,128.09,11.29475514]
[1765903338664,16.3643835,128.14,128.11,0.69]
[1765903338864,17.0543835,128.14,128.1,19.10114937]
[1765903339066,17.0543835,128.14,128.1,8.49639423]
[1765903339268,16.3643835,128.14,128.1,7.80639423]
[1765903339492,16.3643835,128.14,128.11,0.69]
[1765903339689,17.0543835,128.14,128.1,7.80639423]
[1765903339863,27.65913864,128.14,128.09,8.49682873]
[1765903340557,17.0543835,128.14,128.1,0.69]
[1765903340891,17.0543835,128.14,128.1,8.49592164]
[1765903341686,16.3643835,128.14,128.11,0.69]
[1765903342091,16.3643835,128.14,128.1,18.41067678]
[1765903342306,17.0543835,128.14,128.1,19.10067678]
[1765903342886,17.0543835,128.14,128.1,0.69]
[1765903343091,0.69,128.13,128.09,7.80682633]
[1765903343609,26.96913864,128.14,128.1,0.69]
[1765903343610,17.0543835,128.14,128.1,0.69]
[1765903343776,17.0543835,128.14,128.1,8.49612962]
[1765903343976,8.56,128.14,128.11,0.69]
[1765903344210,16.36396737,128.14,128.11,0.69]
[1765903344605,19.5053854,128.17,128.14,0.69]
[1765903344606,7.80239638,128.17,128.14,0.69]
[1765903344903,103.4,128.18,128.15,0.69]
[1765903344904,16.36179486,128.18,128.15,0.69]
[1765903345077,8.56,128.18,128.15,0.69]
[1765903345276,8.56,128.18,128.16,0.69]
[1765903345478,7.8011546,128.19,128.16,0.69]
[1765903345912,8.4911546,128.19,128.15,11.29475514]
[1765903346094,7.8011546,128.19,128.16,0.69]
[1765903346697,7.79991561,128.21,128.17,11.29475514]
[1765903346902,17.04936434,128.22,128.17,19.09659522]
[1765903347088,0.69,128.21,128.17,11.29475514]
[1765903347411,0.69,128.21,128.17,0.69]
[1765903347707,11.29475514,128.21,128.17,0.69]
[1765903348100,0.69,128.2,128.16,0.69]
[1765903348299,0.69,128.19,128.15,27.65789411]
[1765903348496,0.69,128.19,128.15,17.05313897]
[1765903348702,9.25,128.19,128.15,0.69]
[1765903348879,16.36132424,128.19,128.15,8.49292648]
[1765903349079,17.05132424,128.19,128.15,0.69]
[1765903349501,0.69,128.18,128.13,19.09914775]
[1765903349704,0.69,128.16,128.12,10.60475514]
[1765903350007,9.25,128.16,128.11,30.1182927]
[1765903350195,19.16475514,128.16,128.11,18.41026684]
[1765903350391,0.69,128.15,128.11,8.4955117]
[1765903350899,8.49354136,128.15,128.11,7.8055117]
[1765903351211,8.49354136,128.15,128.12,0.69]
[1765903351389,7.80354136,128.15,128.12,0.69]
[1765903353296,7.80354136,128.15,128.12,8.49505467]
[1765903353715,7.80354136,128.15,128.12,0.69]
[1765903354401,17.05281967,128.16,128.12,8.49468206]
[1765903354605,16.36281967,128.16,128.13,0.69]
[1765903355009,17.08281967,128.16,128.12,19.10006372]
[1765903355409,16.36281967,128.16,128.13,10.60538166]
[1765903355603,16.36281967,128.16,128.14,0.69]
[1765903356006,8.56,128.16,128.14,0.69]
[1765903356394,8.56,128.16,128.13,19.09971162]
[1765903356591,16.3628307,128.16,128.13,11.29538166]
[1765903356790,17.0828307,128.16,128.13,0.69]
[1765903357017,17.0828307,128.16,128.09,8.54]
[1765903357018,10.60538166,128.15,128.09,8.54]
[1765903357221,0.72,128.12,128.09,0.69]
[1765903357423,8.56,128.13,128.1,0.69]
[1765903357718,8.56,128.13,128.11,0.69]
[1765903358795,16.36473866,128.13,128.09,8.49671524]
[1765903358996,17.08473866,128.13,128.1,0.69]
[1765903359297,7.80416717,128.14,128.11,11.29538166]
[1765903359498,7.80338676,128.15,128.12,10.60538166]
[1765903359729,30.8316342,128.17,128.13,0.69]
[1765903359730,7.80304675,128.16,128.13,0.69]
[1765903360020,16.36304675,128.16,128.13,0.69]
[1765903360325,17.08304675,128.16,128.12,11.29538166]
[1765903360699,8.56,128.16,128.13,11.29538166]
[1765903360930,16.36279745,128.16,128.13,11.29538166]
[1765903361626,16.36279745,128.16,128.13,7.21471575]
[1765903361938,13.0470912,128.18,128.15,0.69]
[1765903362102,13.7670912,128.18,128.15,0.69]
[1765903362305,16.36117685,128.19,128.16,0.69]
[1765903362505,17.08117685,128.19,128.16,0.69]
[1765903362819,17.08117685,128.19,128.15,15.01760649]
[1765903363121,116.4470912,128.22,128.15,15.01760649]
[1765903363122,8.56,128.21,128.18,0.69]
[1765903363442,8.56,128.21,128.18,7.21471575]
[1765903364012,8.56,128.21,128.18,0.69]
[1765903364199,0.72,128.2,128.15,16.36289074]
[1765903364406,0.72,128.2,128.16,7.21471575]
[1765903364606,8.56,128.21,128.16,6.52471575]
[1765903364607,9.28,128.21,128.16,6.52471575]
[1765903364815,7.80031201,128.2,128.17,0.69]
[1765903365639,7.80031201,128.2,128.17,8.49204392]
[1765903366008,7.80031201,128.2,128.17,0.69]
[1765903366209,8.52031201,128.2,128.16,7.21471575]
[1765903366509,0.72,128.19,128.14,14.32833074]
[1765903366719,27.30109204,128.2,128.15,14.32803445]
[1765903366934,8.52126573,128.19,128.15,15.01803445]
[1765903367433,8.56,128.18,128.12,0.69]
[1765903367638,9.28,128.18,128.14,0.69]
[1765903367805,9.28,128.18,128.14,14.3286182]
[1765903368010,8.56,128.18,128.15,0.69]
[1765903368319,9.28,128.18,128.14,15.0186182]
[1765903368717,8.56,128.18,128.16,0.69]
[1765903368947,7.80126573,128.19,128.16,8.49266836]
[1765903369231,7.80126573,128.19,128.16,15.01738411]
[1765903369420,7.80126573,128.19,128.17,0.69]
[1765903369821,7.80126573,128.19,128.16,7.21471575]
[1765903370437,7.80126573,128.19,128.16,0.69]
[1765903370639,16.36069068,128.2,128.16,15.01733217]
[1765903370825,17.08069068,128.2,128.16,7.21471575]
[1765903371323,17.08069068,128.2,128.16,0.69]
[1765903371523,43.10618646,128.2,128.16,0.69]
[1765903371709,6.52471575,128.18,128.13,0.69]
[1765903371909,0.72,128.17,128.13,15.01894147]
[1765903372315,7.24471575,128.18,128.14,0.69]
[1765903372654,0.72,128.18,128.14,0.69]
[1765903373218,7.80213778,128.17,128.14,0.69]
[1765903374412,7.80213778,128.17,128.14,7.21471575]
[1765903374634,7.80213778,128.17,128.11,0.69]
[1765903374635,0.72,128.16,128.11,0.69]
[1765903374826,6.52471575,128.16,128.11,15.02022332]
[1765903375037,7.24471575,128.16,128.12,0.69]
[1765903375241,7.80335544,128.15,128.12,0.69]
[1765903375432,7.80335544,128.15,128.12,8.49512838]
[1765903375633,7.80335544,128.15,128.12,0.69]
[1765903375833,7.80335544,128.15,128.1,19.51517285]
[1765903375834,0.72,128.14,128.1,7.80623931]
[1765903376030,0.72,128.14,128.1,14.33095506]
[1765903376229,33.83645979,128.15,128.09,16.34672891]
[1765903376434,9.28,128.14,128.1,0.69]
[1765903376843,0.72,128.13,128.08,7.80756666]
[1765903377040,0.72,128.12,128.08,15.02228241]
[1765903377347,8.56,128.14,128.09,14.33166926]
[1765903377348,17.08428467,128.14,128.09,14.33166926]
[1765903377555,17.08428467,128.14,128.1,7.21471575]
[1765903377758,16.36428467,128.14,128.11,0.69]
[1765903378553,17.08428467,128.14,128.11,0.69]
[1765903378863,17.08428467,128.14,128.1,14.33091912]
[1765903379154,16.36428467,128.14,128.11,0.69]
[1765903380022,8.52348496,128.15,128.12,0.69]
[1765903380242,17.08348496,128.15,128.12,0.69]
[1765903380560,17.08348496,128.15,128.11,15.02044454]
[1765903380760,8.56,128.15,128.12,0.69]
[1765903381047,13.7670912,128.16,128.14,0.69]
[1765903381048,7.80304404,128.16,128.14,0.69]
[1765903381352,7.80304404,128.16,128.13,0.69]
[1765903381353,8.52304404,128.16,128.13,0.69]
[1765903381554,0.72,128.15,128.1,6.52471575]
[1765903381756,0.72,128.15,128.1,14.33111188]
[1765903381757,0.72,128.14,128.1,14.33111188]
[1765903381933,7.80396441,128.14,128.11,0.69]
[1765903382551,15.04868016,128.14,128.09,14.33149593]
[1765903382753,15.04868016,128.14,128.08,19.51838821]
[1765903382754,0.72,128.12,128.07,8.56]
[1765903383059,16.36396441,128.14,128.1,8.4963823]
[1765903383060,43.11859119,128.14,128.1,8.4963823]
[1765903383241,36.59387544,128.14,128.1,8.4963823]
[1765903383455,36.59387544,128.14,128.1,0.69]
[1765903383758,36.59387544,128.14,128.1,8.49632878]
[1765903384053,17.08396441,128.14,128.1,8.49632878]
[1765903384244,0.65,128.13,128.08,0.66]
[1765903384448,23.53868016,128.14,128.1,0.66]
[1765903384647,17.01396441,128.14,128.1,7.80638472]
[1765903384836,8.56,128.14,128.11,0.66]
[1765903385035,8.56,128.14,128.12,0.66]